[Event "Indian Rapid Championship 2023-24"]
[Site "Nashik"]
[Date "2024.03.04"]
[Round "3.5"]
[White "Moksh Amit Doshi"]
[Black "Ayush Sharma"]
[Result "1-0"]
[ECO "E15"]
[WhiteElo "2353"]
[BlackElo "2311"]
[Annotator "TA"]
[PlyCount "75"]
[EventDate "2024.03.02"]
[EventType "swiss"]
[EventCountry "IND"]
[SourceTitle "playchess.com"]
[Source "ChessBase"]
[SourceQuality "1"]
[TimeControl "900+10"]

{[%evp 15,75,7,11,0,15,0,44,18,44,18,36,14,10,12,20,19,35,-13,80,32,29,27,127,0,128,119,108,113,116,95,92,92,110,47,50,0,0,0,0,0,0,0,0,0,0,-20,0,0,0,-21,0,0,0,-50,-29,-33,-8,-18,-24,-33,854,843]} 1. d4 {[%emt 0:00:07]} Nf6 {[%emt 0:00:02]} 2. c4 {[%emt 0:00:02]} e6 {[%emt 0:00:01]} 3. Nf3 {[%emt 0:00:06]} b6 {[%emt 0:00:01]} 4. g3 {[%emt 0:00:08]} Ba6 {[%emt 0:00:02]} 5. b3 {[%emt 0:00:10]} Bb4+ {[%emt 0:00:06]} 6. Bd2 {[%emt 0:00:02]} Be7 {[%emt 0:00:02]} 7. Nc3 {[%emt 0:00:01]} c6 {[%emt 0:00:01]} 8. e4 {[%emt 0:00:10]} d5 {[%emt 0:00:01]} 9. Bd3 {[%emt 0:00:01]} dxe4 {[%emt 0:00:03]} 10. Nxe4 {[%emt 0:00:02]} O-O {[%emt 0:00:09]} 11. O-O {[%emt 0:01:15] White is slightly better.} Bb7 {[%emt 0:00:26]} 12. Qe2 {[%emt 0:01:03]} Nbd7 {[%emt 0:00:30]} 13. Rad1 {[%emt 0:01:02]} c5 {[%emt 0:00:32]} 14. Bc3 {[%emt 0:00:40]} Qc7 {[%emt 0:00:55]} 15. dxc5 {[%emt 0:00:53]} bxc5 {[%emt 0:00:42]} 16. Nfg5 {[%emt 0:02:40]} (16. Neg5 $14 {was preferrable.}) 16... Qc6 {[%emt 0:03:22]} (16... Nxe4 $11 {keeps the balance.} 17. Nxe4 f5) 17. f3 {[%emt 0:00:42] White is much more active.} ({Better is} 17. Bxf6 $16 gxf6 18. Nxh7) 17... h6 {[%emt 0:01:19]} 18. Nxf6+ {[%emt 0:00:02]} Bxf6 {[%emt 0:01:36]} (18... Nxf6 $11 {remains equal.} 19. Ne4 Qc7) 19. Bh7+ $16 {[%emt 0:01:03]} Kh8 {[%emt 0:00:01]} 20. Be4 {[%emt 0:00:01]} Qc7 {[%emt 0:00:07]} 21. Bxb7 {[%emt 0:00:57]} Qxb7 {[%emt 0:00:01]} 22. Ne4 {[%emt 0:00:03][%cal Od1d7] [#] Rxd7! is the strong threat.} Bxc3 {[%emt 0:00:03]} 23. Nxc3 {[%emt 0:00:01]} Rad8 {[%emt 0:01:00]} 24. Rd2 {[%emt 0:00:41]} (24. Qe3 $16) 24... Nb8 $14 {[%emt 0:01:36][%cal Bd7b8,Bb8c6,Bc6d4][%mdl 32]} 25. Rfd1 {[%emt 0:00:50]} (25. Na4 $14) 25... Rxd2 $1 $11 {[%emt 0:00:11]} 26. Rxd2 {[%emt 0:01:19]} Nc6 {[%emt 0:00:02]} 27. Qe3 {[%emt 0:00:33]} Nd4 {[%emt 0:00:08]} 28. Kf2 {[%emt 0:00:01]} Rd8 {[%emt 0:01:32]} 29. Ne2 {[%emt 0:00:37]} Qb6 {[%emt 0:01:37]} 30. Nf4 {[%emt 0:00:42]} Qa5 {[%emt 0:00:55]} 31. Kg2 {[%emt 0:00:39]} Rd7 {[%emt 0:00:10] [#] White must now prevent ...Nf5.} 32. Qf2 {[%emt 0:00:30]} Qc3 {[%emt 0:01:08]} 33. Rd3 {[%emt 0:00:13][%cal Bd2d3,Bd3c3,Bc3c1][%mdl 32]} Qa1 {[%emt 0:00:03]} 34. Qd2 {[%emt 0:00:12]} (34. Rd2 $11) 34... Qb1 {[%emt 0:00:11]} 35. Rc3 {[%emt 0:01:35]} g5 {[%emt 0:02:05]} 36. Nh3 {[%emt 0:00:21]} Rd6 {[%emt 0:00:19] aiming for ...Nf5.} 37. Nf2 {[%emt 0:00:20]} f5 $2 {[%emt 0:00:06][%mdl 8192] Prevents Ne4} (37... Ra6 $15 38. a4 e5 (38... Nxb3 39. Qd8+ Kg7 40. Ne4 $11)) 38. Rc1 {[%emt 0:00:26] Weighted Error Value: White=0.16 (very precise) /Black=0.20 (precise) .  Loses game:     	---       	Black=1      Mistake:       	White=5     	Black=2      Inaccurate:     	White=2     	Black=3      OK:         	White=4     	Black=8      Best:        	White=4     	Black=3      Strong:       	---       	Black=1} 1-0

[Event "Indian Rapid Championship 2023-24"]
[Site "Nashik"]
[Date "2024.03.04"]
[Round "3.6"]
[White "Abhishek, Kelkar"]
[Black "Sriram, Jha"]
[Result "1-0"]
[ECO "D11"]
[WhiteElo "2182"]
[BlackElo "2312"]
[Annotator "TA"]
[PlyCount "81"]
[EventDate "2024.03.02"]
[EventType "swiss"]
[EventCountry "IND"]
[SourceTitle "playchess.com"]
[Source "ChessBase"]
[SourceQuality "1"]
[TimeControl "900+10"]

{[%evp 9,80,0,12,0,-1,-21,0,0,0,-21,-15,-49,0,-89,-42,-95,-101,-102,-97,-101,5,8,6,7,0,9,0,0,0,0,45,34,106,110,111,105,98,110,102,112,101,70,716,741,911,893,877,891,862,0,0,-29996,775,697,1289,1381,1186,1170,1130,1108,1613,1603,1824,1463,2172,1993,29992,29977,29961,29966,29985,29986,29999]} 1. d4 {[%emt 0:00:05]} d5 {[%emt 0:00:14]} 2. c4 {[%emt 0:00:06]} c6 {[%emt 0:00:40]} 3. Nf3 {[%emt 0:00:03]} Nf6 {[%emt 0:00:41]} 4. Qc2 {[%emt 0:00:05]} g6 {[%emt 0:00:31]} 5. Bf4 {[%emt 0:00:50]} dxc4 {[%emt 0:00:47] Schwarz hat schwache schwarze Felder} 6. e4 {[%emt 0:01:04]} b5 {[%emt 0:03:54]} 7. b3 {[%emt 0:00:17]} cxb3 {[%emt 0:00:55]} 8. axb3 {[%emt 0:00:02] Die Stellung ist ausgeglichen.} Bg7 {[%emt 0:00:01]} 9. Nbd2 {[%emt 0:00:17]} O-O {[%emt 0:00:11]} 10. Be2 {[%emt 0:01:00]} Bb7 {[%emt 0:00:16]} (10... Nh5 $15 11. Be3 f5 12. exf5 Bxf5) 11. h4 {[%emt 0:00:29]} (11. b4 $11) 11... Nbd7 {[%emt 0:01:06]} ({Besser ist} 11... a5 $17) 12. h5 {[%emt 0:01:39]} Nxh5 $17 {[%emt 0:00:10]} (12... gxh5 13. e5 Nd5 14. Ng5) 13. Rxh5 {[%emt 0:00:02]} gxh5 {[%emt 0:00:01]} 14. e5 {[%emt 0:00:01]} h6 {[%emt 0:03:30]} (14... Qe8 $17) 15. Qf5 $1 $11 {[%emt 0:00:15][%cal Oe2d3] [#] Droht stark Bd3!} e6 $1 {[%emt 0:01:54]} 16. Qxh5 {[%emt 0:00:16]} f5 {[%emt 0:00:31]} 17. Bxh6 {[%emt 0:02:25]} Qe8 $1 {[%emt 0:01:12]} 18. Qg5 {[%emt 0:00:47]} Rf7 {[%emt 0:00:01]} 19. Nh4 {[%emt 0:00:57] Schwarz muss nun Bh5 beachten.} Qe7 {[%emt 0:00:04]} 20. Qg3 {[%emt 0:00:12] Droht Bh5 und aus.} Qb4 {[%emt 0:00:59]} (20... c5 $14) 21. Bh5 $16 {[%emt 0:02:25]} Re7 {[%emt 0:00:03]} 22. Ng6 {[%emt 0:02:00] Tanz auf der Rasierklinge. Weiß steht aktiver.} Bxh6 {[%emt 0:00:19]} 23. Nxe7+ {[%emt 0:00:03]} Kh8 {[%emt 0:00:01]} 24. Ng6+ {[%emt 0:01:00]} Kh7 {[%emt 0:00:01]} 25. Nf4 {[%emt 0:00:05]} Nf8 {[%emt 0:00:39][%mdl 8192] Verhindert Qg6+} (25... Nxe5 $14 26. dxe5 Qxf4 27. Qg6+ Kh8) 26. Bg6+ $18 {[%emt 0:01:51]} Kh8 {[%emt 0:00:23]} 27. Bf7 {[%emt 0:00:01][%csl Gf7][%cal Rg3g8]} Nh7 {[%emt 0:00:18][%cal Bf8h7,Bh7g5,Bg5e4][%mdl 32] [#]} 28. Rxa7 $3 {[%emt 0:00:27][%mdl 512]} Ng5 {[%emt 0:00:13]} 29. Ng6+ $2 $40 {[%emt 0:00:55][%mdl 128] Weiss hat was vor.} ({Weiss kommt nicht vorbei an} 29. Qh4 $18 Nxf7 30. Rxb7 (30. Qf6+ Kg8 $18)) 29... Kg7 {[%emt 0:00:08]} 30. Rxb7 $2 {[%emt 0:00:08][%mdl 8192]} (30. Rxa8 $11 Bxa8 31. Nf4 Kxf7 32. Qh4 Qxd4 33. Qh5+ Ke7 (33... Kg8 34. Qe8+ Bf8 35. Qg6+ Bg7 36. Qe8+ Bf8 37. Ng6 $11) 34. Ng6+ Kd8 35. Qxh6) 30... Ra1+ $4 {[%emt 0:00:12][%mdl 8192]} (30... Nxf7 $2 {geht unter.} 31. Nf4+ Kh8 32. Qh4 $18 (32. Rxf7 Qxd4 $18)) (30... Nf3+ $1 {und Schwarz kann entspannen.} 31. Kf1 Ra1+ (31... Qxd2 32. Bxe6#) 32. Ke2 Qxd2+ 33. Kxf3 Qd3#) 31. Ke2 {[%emt 0:00:02][%cal Be1e2,Be2d2,Bd2c2,Bc2b1,Bb1b2][%mdl 32] Weiss will mit Nf4 Matt setzen.} Qxd2+ {[%emt 0:00:10]} 32. Kxd2 {[%emt 0:00:01] Beabsichtigt Nf4 und Matt.} Ne4+ {[%emt 0:00:00]} 33. Kc2 {[%emt 0:00:10][%cal Rf7e6]} Nxg3 {[%emt 0:00:11]} 34. fxg3 {[%emt 0:00:01][%cal Og6h4] Und Nh4! würde nun gewinnen.} Ra2+ {[%emt 0:00:18]} 35. Kb1 {[%emt 0:00:02]} Rxg2 {[%emt 0:00:02]} 36. Nf4 {[%emt 0:00:02]} (36. Bxe6+ Kxg6 37. Bd7 Rg1+ 38. Kc2 Rg2+ 39. Kd1 Rd2+ 40. Ke1 Rxd4 $16) 36... Rg1+ {[%emt 0:00:06]} 37. Kb2 {[%emt 0:00:06]} Bg5 {[%emt 0:00:26]} 38. Bxe6+ {[%emt 0:00:19] Weiß setzt Matt.} Kf8 {[%emt 0:00:08]} 39. Bxf5 {[%emt 0:00:20]} Rxg3 {[%emt 0:00:01]} 40. Ne6+ {[%emt 0:00:06]} Ke8 {[%emt 0:00:01]} 41. Bg6# {[%emt 0:00:02] Ein Albtraum für Schwarz.   Gewichteter Fehlerwert: Weiß=0.43/Schwarz=0.40.  Verlustzug:     	---       	Schwarz=1     Gewinn verpasst:   	---       	Schwarz=1     Fehler:       	Weiß=2     	Schwarz=4     Ungenau:       	Weiß=2     	Schwarz=1     OK:         	Weiß=5     	Schwarz=5     Bester:       	Weiß=5     	Schwarz=4     Stark:        	Weiß=1     	Schwarz=2} 1-0

[Event "Indian Rapid Championship 2023-24"]
[Site "Nashik"]
[Date "2024.03.04"]
[Round "3.7"]
[White "Neelotpal, Das"]
[Black "Dixit, Nikhil"]
[Result "1-0"]
[ECO "E92"]
[WhiteElo "2355"]
[BlackElo "2334"]
[Annotator "TA"]
[PlyCount "127"]
[EventDate "2024.03.02"]
[EventType "swiss"]
[EventCountry "IND"]
[SourceTitle "playchess.com"]
[Source "ChessBase"]
[SourceQuality "1"]
[TimeControl "900+10"]

{[%evp 51,127,39,108,100,254,254,265,2,281,297,296,298,354,118,121,106,108,120,122,125,128,129,120,118,127,0,19,0,325,329,387,369,334,334,334,296,484,489,530,359,354,330,358,299,595,541,617,-1323,697,694,622,372,504,502,648,447,1263,1253,1268,1066,1229,1169,1318,1394,5193,4686,6906,6042,5354,5165,29985,29986,29986,29987,29987,29988,29988,29989]} 1. d4 {[%emt 0:00:02]} Nf6 {[%emt 0:00:19]} 2. c4 {[%emt 0:00:03]} g6 {[%emt 0:00:02]} 3. Nc3 {[%emt 0:00:01]} Bg7 {[%emt 0:00:03]} 4. e4 {[%emt 0:00:02]} d6 {[%emt 0:00:02]} 5. Be2 {[%emt 0:00:04]} O-O {[%emt 0:00:05]} 6. Nf3 {[%emt 0:00:07]} e5 {[%emt 0:00:10]} 7. Be3 {[%emt 0:00:03]} exd4 {[%emt 0:00:13]} 8. Nxd4 {[%emt 0:00:06]} Re8 {[%emt 0:00:39]} 9. f3 {[%emt 0:00:02]} c6 {[%emt 0:00:02]} 10. Bf2 {[%emt 0:00:01]} d5 {[%emt 0:00:19]} 11. exd5 {[%emt 0:00:06]} cxd5 {[%emt 0:00:02]} 12. O-O {[%emt 0:00:37]} Nc6 {[%emt 0:00:18]} 13. c5 {[%emt 0:00:43]} Bf8 {[%emt 0:00:50]} 14. Nb3 {[%emt 0:01:17]} Nh5 {[%emt 0:05:35]} 15. g3 {[%emt 0:00:52]} Qg5 {[%emt 0:02:57]} 16. Qc1 {[%emt 0:01:09]} Qxc1 {[%emt 0:01:08]} 17. Raxc1 {[%emt 0:00:51]} Bg7 {[%emt 0:00:36]} 18. Bb5 {[%emt 0:00:55]} a6 {[%emt 0:00:22]} 19. Ba4 {[%emt 0:01:57]} Nf6 {[%emt 0:00:07]} 20. Rfd1 {[%emt 0:02:01]} Bd7 {[%emt 0:00:49]} 21. Nd4 {[%emt 0:00:50]} Bh6 {[%emt 0:00:36]} 22. Rb1 {[%emt 0:00:18]} Bf8 {[%emt 0:00:12]} 23. b4 {[%emt 0:00:59]} Rad8 {[%emt 0:00:51]} 24. a3 {[%emt 0:00:00]} Ne5 {[%emt 0:00:11]} 25. Bb3 {[%emt 0:00:58]} Nc4 {[%emt 0:00:27]} 26. Nc2 {[%emt 0:00:10]} (26. Nxd5 $2 Nxd5 $19) 26... Bh6 {[%emt 0:00:10]} ({Black should play} 26... Ne5 $14) 27. Bd4 $1 $16 {[%emt 0:01:13]} (27. Nxd5 $2 Nxd5 28. Rxd5 (28. Bxc4 $2 Nc3 $19) 28... Nd2 $19) 27... Nh5 $2 {[%emt 0:02:26]} (27... Ne5 $16) 28. g4 $1 $18 {[%emt 0:01:37]} (28. Nxd5 Nd2 29. Bf6 Rb8 30. Rxd2 Bxd2 $11) 28... Nf4 {[%emt 0:00:00]} 29. Bxc4 $2 {[%emt 0:01:08]} (29. Bf6 $1 $18 {[%cal Rf6d8]} Ne5 30. Bxd8 (30. Bxd5 Nxd5 31. Nxd5 Nxf3+ 32. Kf2 Nd2 $18) 30... Rxd8 31. Kf2 (31. Bxd5 Nxd5 32. Rxd5 Re8 $18) (31. Nxd5 Kf8 $18)) 29... Nh3+ $2 {[%emt 0:00:00][%mdl 8192]} (29... dxc4 $11 30. Bf6 Bg7 31. Bxd8 Rxd8) 30. Kf1 $1 $18 {[%emt 0:00:13]} dxc4 {[%emt 0:00:00]} 31. Bf6 {[%emt 0:00:13]} Bg7 {[%emt 0:00:06]} 32. Ne4 $2 {[%emt 0:00:27]} (32. Bxd8 $18 {and the rest is easy.} Rxd8 33. Nd5) 32... Ba4 $16 {[%emt 0:00:24]} 33. Rxd8 {[%emt 0:00:16]} Rxd8 {[%emt 0:00:01]} 34. Bxd8 {[%emt 0:00:01]} Bxc2 {[%emt 0:00:04] [#]} 35. Re1 $1 {[%emt 0:00:33]} Bd3+ {[%emt 0:00:05]} 36. Kg2 {[%emt 0:00:01]} Nf4+ {[%emt 0:00:08]} 37. Kg3 {[%emt 0:00:21]} Ne2+ {[%emt 0:00:18] [#]} 38. Kh4 {[%emt 0:00:11]} (38. Rxe2 $1 $16 Bxe2 39. Bf6) 38... h6 {[%emt 0:00:06]} 39. g5 {[%emt 0:00:37]} h5 $2 {[%emt 0:00:13][%mdl 8192]} (39... c3 $11 40. gxh6 Bd4 (40... Bxh6 41. Nxc3 Nxc3 42. Bf6 $11)) 40. Bf6 $18 {[%emt 0:00:16]} Nd4 {[%emt 0:00:40]} 41. Kg3 {[%emt 0:00:15]} Nc2 {[%emt 0:00:03]} 42. Rd1 {[%emt 0:00:09]} Nxa3 {[%emt 0:00:04]} 43. Nf2 {[%emt 0:00:19]} Bxf6 $2 {[%emt 0:00:13]} (43... Bf5 44. Ne4 (44. Rd8+ Kh7 $18) 44... Bxe4) 44. gxf6 $18 {[%emt 0:00:04]} Bf5 {[%emt 0:00:01]} 45. Ne4 {[%emt 0:00:09]} Bxe4 {[%emt 0:00:20]} 46. fxe4 {[%emt 0:00:01]} c3 {[%emt 0:00:05]} 47. Kf2 {[%emt 0:00:24]} g5 $2 {[%emt 0:00:19]} (47... c2 48. Rg1 (48. Rc1 g5 $18) 48... Nc4) 48. Ke2 {[%emt 0:00:07]} c2 {[%emt 0:00:01]} 49. Rd8+ {[%emt 0:00:05]} Kh7 {[%emt 0:00:01]} 50. Kd2 {[%emt 0:00:00]} g4 {[%emt 0:00:07]} 51. e5 {[%emt 0:00:15]} ({Worse is} 51. Rd3 Nc4+ 52. Kxc2 h4 $11) 51... Kg6 {[%emt 0:00:09]} 52. Kc1 {[%emt 0:00:16]} Kf5 {[%emt 0:00:13]} 53. Re8 {[%emt 0:00:11]} h4 {[%emt 0:00:19]} (53... Kg6 $142 54. Rg8+ Kf5) 54. e6 $18 {[%emt 0:00:15]} Kxf6 {[%emt 0:00:08]} 55. exf7 {[%emt 0:00:03]} Kxf7 {[%emt 0:00:03]} 56. Re4 {[%emt 0:00:06]} g3 {[%emt 0:00:05]} 57. Rxh4 {[%emt 0:00:01]} (57. Rf4+ Ke6 58. hxg3 (58. Rxh4 gxh2 59. Rxh2 Kd7 $18) 58... hxg3 $16) 57... gxh2 {[%emt 0:00:09]} 58. Rxh2 {[%emt 0:00:00]} Ke6 {[%emt 0:00:07]} 59. Rh7 {[%emt 0:00:12]} Kd5 {[%emt 0:00:02]} 60. Rxb7 {[%emt 0:00:05]} a5 {[%emt 0:00:18]} 61. bxa5 {[%emt 0:00:09]} Kxc5 {[%emt 0:00:01]} 62. a6 {[%emt 0:00:01]} Kc6 {[%emt 0:00:03]} 63. Rb3 {[%emt 0:00:12]} Nb5 {[%emt 0:00:06]} 64. Rxb5 {[%emt 0:00:01]} ({Not} 64. Kxc2 Nd4+ 65. Kd3 Nxb3 $11) 1-0

[Event "Indian Rapid Championship 2023-24"]
[Site "Nashik"]
[Date "2024.03.04"]
[Round "3.8"]
[White "Vignesh B"]
[Black "Sidhant, Mohapatra"]
[Result "0-1"]
[ECO "A07"]
[WhiteElo "2209"]
[BlackElo "2379"]
[Annotator "TA"]
[PlyCount "154"]
[EventDate "2024.03.02"]
[EventType "swiss"]
[EventCountry "IND"]
[SourceTitle "playchess.com"]
[Source "ChessBase"]
[SourceQuality "1"]
[TimeControl "900+10"]

{[%evp 15,154,0,0,0,0,-43,-23,-38,-26,-44,-38,-43,-6,-18,-20,-90,-43,-50,-56,-78,-72,-75,0,-35,34,28,52,53,50,0,-11,-42,-47,-80,-87,-93,-82,-61,-77,-72,-61,-163,-75,-165,-138,-143,62,58,129,0,128,135,137,113,111,18,25,14,6,20,14,-217,-238,-226,-231,-212,-225,-302,-305,-350,-346,-850,-835,-1215,-641,-652,-652,-651,-654,-652,-645,-1086,-487,-482,-500,-496,-490,-513,-365,-358,-348,-348,-342,-335,-254,-254,-254,-254,-254,-254,-8,-8,-8,-278,-120,-145,-127,-141,-131,-4756,-2925,-29959,-29961,-29963,-29964,-29964,-29964,-29970,-29971,-29972,-29973,-29976,-29966,-29973,-29974,-29975,-29974,-29974,-29975,-29981,-29981,-29982,-29983,-29985,-29986,-29990,-29991,-29991,-29992,-29992,-367]} 1. Nf3 {[%emt 0:00:02]} d5 {[%emt 0:00:05]} 2. g3 {[%emt 0:00:03]} c6 {[%emt 0:00:01]} 3. Bg2 {[%emt 0:00:01]} Bg4 {[%emt 0:00:03]} 4. O-O {[%emt 0:00:04]} Nd7 {[%emt 0:00:02]} 5. b3 {[%emt 0:00:03]} e5 {[%emt 0:00:19]} 6. d3 {[%emt 0:00:03]} Bd6 {[%emt 0:00:09]} 7. c4 {[%emt 0:00:03]} Ngf6 {[%emt 0:00:04]} 8. cxd5 {[%emt 0:01:45]} cxd5 {[%emt 0:00:06]} 9. Bb2 {[%emt 0:02:14]} O-O {[%emt 0:00:14]} 10. Nc3 {[%emt 0:00:06]} d4 {[%emt 0:01:03]} 11. Nb5 {[%emt 0:00:17][%cal Bc3b5,Bb5a3,Ba3c4][%mdl 32] Schwarz hat minimalen Vorteil.} Bc5 {[%emt 0:00:43]} 12. h3 {[%emt 0:01:11]} Be6 {[%emt 0:00:07]} 13. Na3 {[%emt 0:01:32]} Bd5 {[%emt 0:00:25]} 14. Nc4 {[%emt 0:00:20]} Qe7 {[%emt 0:00:03]} 15. Rc1 {[%emt 0:00:11]} (15. e3 $11 {hält das Gleichgewicht.}) 15... Rac8 {[%emt 0:00:07] Schwarz steht aktiver.} (15... b5 $17 16. Ncd2 a5) 16. a4 $15 {[%emt 0:00:39]} b6 {[%emt 0:00:14]} 17. Nh4 {[%emt 0:02:40]} Bxg2 {[%emt 0:00:05]} 18. Kxg2 {[%emt 0:00:04]} Nd5 {[%emt 0:00:16] Lässt e3 nicht zu} (18... Qe6 $17 19. e4 dxe3 20. fxe3 Nd5) 19. Nf5 {[%emt 0:00:59]} Qg5 {[%emt 0:02:30]} (19... Qe6 $15 20. e4 g6 (20... dxe3 21. fxe3 g6 22. e4 $11)) 20. e4 $1 $14 {[%emt 0:00:51][%cal Og2h2]} Nf4+ {[%emt 0:04:28]} 21. Kh2 {[%emt 0:00:05][%cal Oh3h4] [#] h4! ist eine echte Drohung.} Ne6 {[%emt 0:00:07]} 22. h4 {[%emt 0:03:12]} (22. f4 $14 exf4 23. gxf4) 22... Qd8 $11 {[%emt 0:00:05]} 23. Ncd6 {[%emt 0:00:37]} Rb8 {[%emt 0:00:47]} 24. Nc4 {[%emt 0:01:05]} g6 {[%emt 0:00:52]} 25. Nh6+ {[%emt 0:00:19]} Kg7 {[%emt 0:00:02]} 26. Ng4 {[%emt 0:00:03][%cal Bh6g4,Bg4h2,Bh2f3][%mdl 32]} f6 {[%emt 0:00:43]} 27. Qd2 {[%emt 0:00:19]} Qe7 {[%emt 0:00:05]} 28. Kg2 {[%emt 0:00:03]} (28. h5 $15) 28... Kh8 {[%emt 0:00:48]} (28... Bb4 $19 29. Qh6+ Kh8) 29. Rh1 {[%emt 0:00:22]} (29. h5 $17 {war einen Versuch wert.}) 29... h5 $19 {[%emt 0:00:12]} 30. Nh2 {[%emt 0:00:09]} f5 $2 {[%emt 0:00:05]} (30... Bb4 $17 31. Qe2 a6) 31. Qh6+ $14 {[%emt 0:00:03]} Qh7 {[%emt 0:00:01]} ({Besser ist} 31... Kg8 $1 $14) 32. Qxh7+ $16 {[%emt 0:00:02]} Kxh7 {[%emt 0:00:01]} 33. Nf3 {[%emt 0:00:07]} fxe4 {[%emt 0:00:32]} 34. dxe4 {[%emt 0:00:02]} b5 {[%emt 0:00:16]} 35. axb5 {[%emt 0:00:41]} ({Vorzuziehen ist} 35. Ncxe5 $16 Nxe5 36. Nxe5 bxa4 37. Nd7) 35... Rxb5 $11 {[%emt 0:00:01]} 36. Ncxe5 {[%emt 0:00:02]} Nxe5 {[%emt 0:00:02]} 37. Nxe5 {[%emt 0:00:01]} Rxb3 {[%emt 0:00:04]} 38. Nd7 $2 {[%emt 0:00:30]} (38. Ba1 $1 $11 d3 39. f4) 38... Rxb2 $19 {[%emt 0:00:22]} 39. Nxf8+ {[%emt 0:00:04]} Bxf8 {[%emt 0:00:01]} 40. Rc6 {[%emt 0:00:05]} Nc5 {[%emt 0:00:50][%cal Oa7a5]} 41. Ra1 {[%emt 0:00:30]} Rb7 {[%emt 0:00:44][%cal Od4d3]} ({Schlechter ist} 41... Nxe4 42. Rxa7+ Kh6 (42... Bg7 $2 43. Rcc7 $18) 43. Kf3 Nd2+ (43... Rxf2+ $2 {zu gefräßig.} 44. Kxe4 Re2+ 45. Kxd4 $18) (43... Nxf2 44. Rcc7 Rb3+ 45. Kxf2 Rb2+ 46. Kg1) 44. Kg2 $11) 42. e5 {[%emt 0:00:03]} d3 {[%emt 0:00:23]} 43. Kf3 $2 {[%emt 0:00:32]} (43. Ra2) 43... Nb3 {[%emt 0:00:17]} 44. Ra4 {[%emt 0:00:10]} Bc5 {[%emt 0:00:06]} 45. e6 {[%emt 0:00:14]} d2 {[%emt 0:00:23]} 46. Ke2 {[%emt 0:00:05]} Nd4+ {[%emt 0:00:17]} 47. Rxd4 {[%emt 0:00:02]} Bxd4 {[%emt 0:00:01][%mdl 4096] Endspiel. KRB-KR} 48. Rd6 {[%emt 0:00:20]} Bf6 {[%emt 0:00:12]} (48... Bc3 $142 {Zielt auf ...Rb1 ab.} 49. Rd7+ Rxd7 50. exd7 Ba5) 49. Kxd2 {[%emt 0:00:06]} Kg7 {[%emt 0:00:05]} 50. Kd3 {[%emt 0:00:12]} Be7 {[%emt 0:00:01]} 51. Rc6 {[%emt 0:00:01]} Rb6 {[%emt 0:00:07]} 52. Rc7 {[%emt 0:00:03]} Rxe6 {[%emt 0:00:04] Und ...a6 würde nun gewinnen.} 53. Rxa7 {[%emt 0:00:02]} Kf6 {[%emt 0:00:04]} 54. Ra5 {[%emt 0:00:22]} Re5 {[%emt 0:00:08]} 55. Ra6+ {[%emt 0:00:19]} Kf5 {[%emt 0:00:10]} 56. f3 {[%emt 0:00:01]} Re6 {[%emt 0:00:31]} 57. g4+ {[%emt 0:00:07] [#]} hxg4 $2 {[%emt 0:00:04]} (57... Kf6 $1 $19 58. Ra5 hxg4 59. fxg4 Rb6) 58. fxg4+ $11 {[%emt 0:00:01]} Kf6 {[%emt 0:00:01]} 59. Ra5 {[%emt 0:00:25][%mdl 8192]} (59. g5+ $11 {und Weiss steht sicher.} Kf5 60. Ra8) 59... Kf7 {[%emt 0:00:08]} (59... Rb6 $19 {und Schwarz behält klar die Oberhand. Und jetzt ...Rb4 wäre schön.} 60. h5 gxh5 61. gxh5 Rd6+ 62. Ke4 Re6+ 63. Kf3 Kg7) 60. g5 $17 {[%emt 0:00:23]} Re1 {[%emt 0:00:03] Verhindert Ra1.} 61. Ra4 {[%emt 0:00:07]} Bd6 {[%emt 0:00:16] Pariert Rf4+. Droht ...Bg3 und aus.} 62. Kd2 $2 {[%emt 0:00:14][%mdl 8192]} (62. Ra7+ $17 Re7 63. Ra1) 62... Rh1 $19 {[%emt 0:00:04]} 63. Rg4 {[%emt 0:00:02]} Ke6 {[%emt 0:00:07] Schwarz setzt Matt.} 64. Ke3 {[%emt 0:00:03]} Kf5 {[%emt 0:00:02]} 65. Ra4 {[%emt 0:00:11]} Rh3+ {[%emt 0:00:03]} 66. Kf2 {[%emt 0:00:04]} Bf4 {[%emt 0:00:14]} 67. Ra5+ {[%emt 0:00:27]} Kg4 {[%emt 0:00:02]} 68. Ra6 {[%emt 0:00:02]} Kh5 {[%emt 0:00:01]} 69. Rf6 {[%emt 0:00:09]} Rxh4 {[%emt 0:00:03]} 70. Rf7 {[%emt 0:00:09]} Kxg5 {[%emt 0:00:04]} 71. Kf3 {[%emt 0:00:01]} Rh3+ {[%emt 0:00:02]} 72. Kg2 {[%emt 0:00:02]} Ra3 {[%emt 0:00:03]} 73. Rg7 {[%emt 0:00:02]} Kf5 {[%emt 0:00:02]} 74. Rf7+ {[%emt 0:00:01]} Kg4 {[%emt 0:00:01]} 75. Rf8 {[%emt 0:00:02]} Ra2+ {[%emt 0:00:02]} 76. Kf1 {[%emt 0:00:01]} Kf3 {[%emt 0:00:01][%cal Ra2a1]} 77. Re8 {[%emt 0:00:04]} Ra1+ $2 {[%emt 0:00:02] Gewichteter Fehlerwert: Weiß=0.66/Schwarz=0.59.  Verlustzug:     	Weiß=3     	---        Gewinn verpasst:   	---       	Schwarz=1     Fehler:       	Weiß=6     	Schwarz=7     Ungenau:       	Weiß=7     	Schwarz=2     OK:         	Weiß=14    	Schwarz=18    Bester:       	Weiß=4     	Schwarz=7     Stark:        	Weiß=1     	---} (77... g5 {setzt Matt} 78. Re1 g4 79. Kg1 Be3+ 80. Kh1 g3 81. Rf1+ Rf2 82. Rxf2+ gxf2 83. Kh2 f1=R 84. Kh3 Rh1#) 0-1